[Event "Titled Tuesday Blitz January 18 2022"]
[White "Petrovskyi, Vadym"]
[Black "Sadykov, Ramil"]
[WhiteFideId "14165210"]
[BlackFideId "24113590"]
[WhiteElo "2424"]
[BlackElo "2300"]
[Result "1-0"]
[Round "03"]
[TimeControl "180+1"]
[Date "2022.01.18"]
[WhiteClock "0:00:22"]
[BlackClock "0:00:01"]

1. e4 {[%clk 0:03:00]}  c5 {[%clk 0:02:47]} 2. Nf3 {[%clk 0:03:00]}  e6 {[%clk 0:02:47]} 3. d4 {[%clk 0:03:01]}  cxd4 {[%clk 0:02:48]} 4. Nxd4 {[%clk 0:03:02]}  Nf6 {[%clk 0:02:48]} 5. Nc3 {[%clk 0:03:02]}  Nc6 {[%clk 0:02:47]} 6. Ndb5 {[%clk 0:03:02]}  Bb4 {[%clk 0:02:45]} 7. a3 {[%clk 0:03:01]}  Bxc3+ {[%clk 0:02:45]} 8. Nxc3 {[%clk 0:03:02]}  d5 {[%clk 0:02:46]} 9. exd5 {[%clk 0:03:02]}  exd5 {[%clk 0:02:47]} 10. Bd3 {[%clk 0:03:02]}  O-O {[%clk 0:02:47]} 11. O-O {[%clk 0:03:02]}  d4 {[%clk 0:02:48]} 12. Ne2 {[%clk 0:03:02]}  Bg4 {[%clk 0:02:48]} 13. f3 {[%clk 0:03:03]}  Bh5 {[%clk 0:02:48]} 14. Nf4 {[%clk 0:02:59]}  Bg6 {[%clk 0:02:48]} 15. Nxg6 {[%clk 0:02:59]}  hxg6 {[%clk 0:02:49]} 16. f4 {[%clk 0:02:59]}  Ne7 {[%clk 0:02:50]} 17. Qf3 {[%clk 0:02:56]}  Qd7 {[%clk 0:02:49]} 18. Bd2 {[%clk 0:02:54]}  Rfe8 {[%clk 0:02:48]} 19. Rae1 {[%clk 0:02:53]}  Nf5 {[%clk 0:02:42]} 20. Re5 {[%clk 0:02:50]}  a6 {[%clk 0:02:19]} 21. Rfe1 {[%clk 0:02:45]}  Rxe5 {[%clk 0:02:09]} 22. fxe5 {[%clk 0:02:44]}  Nd5 {[%clk 0:02:03]} 23. Be4 {[%clk 0:02:26]}  Rd8 {[%clk 0:01:56]} 24. Bg5 {[%clk 0:02:22]}  f6 {[%clk 0:01:34]} 25. exf6 {[%clk 0:02:08]}  gxf6 {[%clk 0:01:33]} 26. Bxd5+ {[%clk 0:02:01]}  Qxd5 {[%clk 0:01:34]} 27. Qxd5+ {[%clk 0:02:01]}  Rxd5 {[%clk 0:01:35]} 28. Bxf6 {[%clk 0:02:02]}  Ne3 {[%clk 0:01:20]} 29. Rc1 {[%clk 0:01:30]}  Kf7 {[%clk 0:01:10]} 30. Bh4 {[%clk 0:01:29]}  Nc4 {[%clk 0:01:06]} 31. Bf2 {[%clk 0:01:19]}  Nxb2 {[%clk 0:00:40]} 32. Rb1 {[%clk 0:01:18]}  d3 {[%clk 0:00:41]} 33. cxd3 {[%clk 0:01:12]}  Rxd3 {[%clk 0:00:42]} 34. h4 {[%clk 0:00:33]}  Rd1+ {[%clk 0:00:25]} 35. Rxd1 {[%clk 0:00:33]}  Nxd1 {[%clk 0:00:26]} 36. Bd4 {[%clk 0:00:34]}  Ke6 {[%clk 0:00:27]} 37. g4 {[%clk 0:00:34]}  Kd5 {[%clk 0:00:25]} 38. h5 {[%clk 0:00:34]}  gxh5 {[%clk 0:00:17]} 39. gxh5 {[%clk 0:00:35]}  Kxd4 {[%clk 0:00:06]} 40. h6 {[%clk 0:00:35]}  Kc4 {[%clk 0:00:06]} 41. h7 {[%clk 0:00:35]}  Kb3 {[%clk 0:00:06]} 42. h8=Q {[%clk 0:00:36]}  Nc3 {[%clk 0:00:05]} 43. Qf6 {[%clk 0:00:26]}  Nb5 {[%clk 0:00:02]} 44. Qf3+ {[%clk 0:00:23]}  Ka4 {[%clk 0:00:02]} 45. Qxb7 {[%clk 0:00:24]}  a5 {[%clk 0:00:01]} 46. Qc6 {[%clk 0:00:22]} 1-0


[Site "https://www.chess.com"]

[Event "Titled Tuesday Blitz January 18 2022"]
[White "Piorun, Kacper"]
[Black "De Silva, L M S T"]
[WhiteFideId "1130420"]
[BlackFideId "9953698"]
[WhiteElo "2571"]
[BlackElo "1631"]
[Result "1-0"]
[Round "03"]
[TimeControl "180+1"]
[Date "2022.01.18"]
[WhiteClock "0:00:07"]
[BlackClock "0:00:36"]

1. d4 {[%clk 0:03:00]}  Nf6 {[%clk 0:03:00]} 2. Bg5 {[%clk 0:03:01]}  e6 {[%clk 0:03:00]} 3. e4 {[%clk 0:03:00]}  h6 {[%clk 0:03:00]} 4. Bxf6 {[%clk 0:03:01]}  Qxf6 {[%clk 0:03:01]} 5. c3 {[%clk 0:03:01]}  d6 {[%clk 0:03:01]} 6. Bd3 {[%clk 0:03:01]}  g6 {[%clk 0:03:02]} 7. Ne2 {[%clk 0:03:02]}  Bg7 {[%clk 0:03:02]} 8. O-O {[%clk 0:03:02]}  Qe7 {[%clk 0:03:03]} 9. f4 {[%clk 0:03:02]}  e5 {[%clk 0:03:03]} 10. Nd2 {[%clk 0:03:01]}  Nd7 {[%clk 0:03:03]} 11. Nf3 {[%clk 0:02:59]}  O-O {[%clk 0:03:03]} 12. Qd2 {[%clk 0:02:52]}  b6 {[%clk 0:02:59]} 13. Rae1 {[%clk 0:02:52]}  Bb7 {[%clk 0:02:59]} 14. Ng3 {[%clk 0:02:52]}  Rae8 {[%clk 0:02:57]} 15. Bc4 {[%clk 0:02:46]}  Kh7 {[%clk 0:02:56]} 16. Kh1 {[%clk 0:02:29]}  c5 {[%clk 0:02:32]} 17. dxe5 {[%clk 0:02:21]}  dxe5 {[%clk 0:02:31]} 18. f5 {[%clk 0:02:22]}  Nf6 {[%clk 0:02:29]} 19. Qe2 {[%clk 0:02:17]}  Rd8 {[%clk 0:02:24]} 20. a4 {[%clk 0:01:53]}  Rd6 {[%clk 0:02:22]} 21. Nh4 {[%clk 0:01:46]}  g5 {[%clk 0:02:20]} 22. Nf3 {[%clk 0:01:46]}  Rfd8 {[%clk 0:02:20]} 23. h3 {[%clk 0:01:41]}  g4 {[%clk 0:02:04]} 24. hxg4 {[%clk 0:01:19]}  Nxg4 {[%clk 0:02:05]} 25. f6 {[%clk 0:01:15]}  Rxf6 {[%clk 0:01:58]} 26. Nf5 {[%clk 0:00:51]}  Rxf5 {[%clk 0:01:56]} 27. exf5 {[%clk 0:00:50]}  Bxf3 {[%clk 0:01:55]} 28. Qxf3 {[%clk 0:00:42]}  Qh4+ {[%clk 0:01:55]} 29. Qh3 {[%clk 0:00:42]}  Nf2+ {[%clk 0:01:55]} 30. Rxf2 {[%clk 0:00:42]}  Qxf2 {[%clk 0:01:56]} 31. Rf1 {[%clk 0:00:41]}  Qc2 {[%clk 0:01:32]} 32. f6 {[%clk 0:00:34]}  Bf8 {[%clk 0:01:29]} 33. Bxf7 {[%clk 0:00:34]}  Qd3 {[%clk 0:01:11]} 34. Rf3 {[%clk 0:00:18]}  Qb1+ {[%clk 0:01:07]} 35. Kh2 {[%clk 0:00:18]}  Bd6 {[%clk 0:01:05]} 36. Qg4 {[%clk 0:00:07]}  Bf8 {[%clk 0:00:36]} 37. Qg8# {[%clk 0:00:07]} 1-0


[Site "https://www.chess.com"]

[Event "Titled Tuesday Blitz January 18 2022"]
[White "Plotkin, Mark"]
[Black "Skatchkov, Valery"]
[WhiteFideId "2611651"]
[BlackFideId "24195812"]
[WhiteElo "2178"]
[BlackElo "2196"]
[Result "1-0"]
[Round "03"]
[TimeControl "180+1"]
[Date "2022.01.18"]
[WhiteClock "0:01:04"]
[BlackClock "0:00:01"]

1. e4 {[%clk 0:03:00]}  e5 {[%clk 0:02:57]} 2. f4 {[%clk 0:03:00]}  d5 {[%clk 0:02:56]} 3. exd5 {[%clk 0:02:59]}  exf4 {[%clk 0:02:56]} 4. c4 {[%clk 0:02:58]}  Nf6 {[%clk 0:02:54]} 5. d4 {[%clk 0:02:57]}  c6 {[%clk 0:02:15]} 6. Bxf4 {[%clk 0:02:53]}  cxd5 {[%clk 0:02:15]} 7. c5 {[%clk 0:02:52]}  Nc6 {[%clk 0:02:13]} 8. Nf3 {[%clk 0:02:51]}  Bg4 {[%clk 0:02:13]} 9. Be2 {[%clk 0:02:52]}  Be7 {[%clk 0:02:13]} 10. O-O {[%clk 0:02:52]}  O-O {[%clk 0:02:12]} 11. Nc3 {[%clk 0:02:51]}  Ne4 {[%clk 0:02:11]} 12. Kh1 {[%clk 0:02:44]}  Bf6 {[%clk 0:01:54]} 13. h3 {[%clk 0:02:37]}  Bxf3 {[%clk 0:01:25]} 14. Bxf3 {[%clk 0:02:38]}  Re8 {[%clk 0:01:25]} 15. Bxe4 {[%clk 0:02:32]}  dxe4 {[%clk 0:01:24]} 16. d5 {[%clk 0:02:33]}  Nb4 {[%clk 0:01:18]} 17. Bd6 {[%clk 0:02:31]}  b6 {[%clk 0:01:03]} 18. Qb3 {[%clk 0:01:59]}  bxc5 {[%clk 0:00:58]} 19. Bxc5 {[%clk 0:01:56]}  Bxc3 {[%clk 0:00:19]} 20. bxc3 {[%clk 0:01:50]}  Nd3 {[%clk 0:00:20]} 21. Bd4 {[%clk 0:01:46]}  Rb8 {[%clk 0:00:20]} 22. Qc4 {[%clk 0:01:45]}  Rc8 {[%clk 0:00:20]} 23. Qb3 {[%clk 0:01:33]}  Rb8 {[%clk 0:00:19]} 24. Qc4 {[%clk 0:01:25]}  Rc8 {[%clk 0:00:19]} 25. Qb5 {[%clk 0:01:26]}  a6 {[%clk 0:00:19]} 26. Qb7 {[%clk 0:01:17]}  Re7 {[%clk 0:00:17]} 27. Qxa6 {[%clk 0:01:16]}  Rec7 {[%clk 0:00:13]} 28. Rf5 {[%clk 0:01:07]}  Qd7 {[%clk 0:00:13]} 29. Raf1 {[%clk 0:01:06]}  Rb7 {[%clk 0:00:11]} 30. Rxf7 {[%clk 0:01:05]}  Ra7 {[%clk 0:00:01]} 31. Qxa7 {[%clk 0:01:04]} 1-0


[Site "https://www.chess.com"]

[Event "Titled Tuesday Blitz January 18 2022"]
[White "Raja Rithvik R"]
[Black "Kashefi, Amir Hosein"]
[WhiteFideId "35007394"]
[BlackFideId "12557935"]
[WhiteElo "2255"]
[BlackElo "2098"]
[Result "1-0"]
[Round "03"]
[TimeControl "180+1"]
[Date "2022.01.18"]
[WhiteClock "0:00:24"]
[BlackClock "0:00:01"]

1. b3 {[%clk 0:03:00]}  d5 {[%clk 0:02:52]} 2. Bb2 {[%clk 0:03:01]}  Nf6 {[%clk 0:02:52]} 3. e3 {[%clk 0:03:01]}  Bf5 {[%clk 0:02:51]} 4. Nf3 {[%clk 0:02:57]}  c6 {[%clk 0:02:45]} 5. Be2 {[%clk 0:02:57]}  Nbd7 {[%clk 0:02:44]} 6. O-O {[%clk 0:02:57]}  e6 {[%clk 0:02:42]} 7. Nh4 {[%clk 0:02:55]}  Bg6 {[%clk 0:02:39]} 8. d3 {[%clk 0:02:53]}  Bd6 {[%clk 0:02:36]} 9. Nd2 {[%clk 0:02:51]}  O-O {[%clk 0:02:34]} 10. Nxg6 {[%clk 0:02:51]}  hxg6 {[%clk 0:02:32]} 11. e4 {[%clk 0:02:51]}  dxe4 {[%clk 0:02:28]} 12. dxe4 {[%clk 0:02:48]}  Qc7 {[%clk 0:02:27]} 13. g3 {[%clk 0:02:47]}  Be5 {[%clk 0:02:23]} 14. c3 {[%clk 0:02:47]}  Bd6 {[%clk 0:02:17]} 15. f4 {[%clk 0:02:37]}  e5 {[%clk 0:02:11]} 16. f5 {[%clk 0:02:37]}  gxf5 {[%clk 0:02:01]} 17. Rxf5 {[%clk 0:02:37]}  Rad8 {[%clk 0:02:00]} 18. Qc2 {[%clk 0:02:31]}  Nc5 {[%clk 0:01:49]} 19. Raf1 {[%clk 0:02:23]}  Be7 {[%clk 0:01:35]} 20. b4 {[%clk 0:02:21]}  Rxd2 {[%clk 0:01:23]} 21. Qxd2 {[%clk 0:02:22]}  Ncxe4 {[%clk 0:01:24]} 22. Qc2 {[%clk 0:02:06]}  a5 {[%clk 0:01:19]} 23. a3 {[%clk 0:01:52]}  c5 {[%clk 0:01:13]} 24. Bd3 {[%clk 0:01:48]}  Nd6 {[%clk 0:01:06]} 25. Rxe5 {[%clk 0:01:45]}  c4 {[%clk 0:00:51]} 26. Bf5 {[%clk 0:01:20]}  axb4 {[%clk 0:00:39]} 27. cxb4 {[%clk 0:01:17]}  b5 {[%clk 0:00:38]} 28. Rc5 {[%clk 0:01:11]}  Qa7 {[%clk 0:00:34]} 29. Bxf6 {[%clk 0:01:05]}  Bxf6 {[%clk 0:00:28]} 30. Bh7+ {[%clk 0:01:00]}  Kh8 {[%clk 0:00:26]} 31. Kg2 {[%clk 0:00:55]}  Qa8+ {[%clk 0:00:25]} 32. Kh3 {[%clk 0:00:46]}  Re8 {[%clk 0:00:11]} 33. Rh5 {[%clk 0:00:45]}  Qb8 {[%clk 0:00:01]} 34. Re1 {[%clk 0:00:24]} 1-0


[Site "https://www.chess.com"]

[Event "Titled Tuesday Blitz January 18 2022"]
[White "Rangel, Daniel"]
[Black "Shyaamnikhil P"]
[WhiteFideId "2124475"]
[BlackFideId "5024218"]
[WhiteElo "2187"]
[BlackElo "2292"]
[Result "1/2-1/2"]
[Round "03"]
[TimeControl "180+1"]
[Date "2022.01.18"]
[WhiteClock "0:00:10"]
[BlackClock "0:00:11"]

1. e4 {[%clk 0:03:00]}  c6 {[%clk 0:02:59]} 2. d4 {[%clk 0:03:00]}  d5 {[%clk 0:02:59]} 3. e5 {[%clk 0:03:00]}  Bf5 {[%clk 0:02:58]} 4. c4 {[%clk 0:03:01]}  e6 {[%clk 0:02:56]} 5. Nc3 {[%clk 0:03:01]}  Ne7 {[%clk 0:02:48]} 6. h3 {[%clk 0:03:00]}  Nd7 {[%clk 0:02:44]} 7. Nf3 {[%clk 0:02:57]}  h6 {[%clk 0:02:39]} 8. b3 {[%clk 0:02:56]}  Bh7 {[%clk 0:02:29]} 9. Be2 {[%clk 0:02:54]}  dxc4 {[%clk 0:02:26]} 10. bxc4 {[%clk 0:02:55]}  Nf5 {[%clk 0:02:25]} 11. O-O {[%clk 0:02:51]}  Be7 {[%clk 0:02:22]} 12. d5 {[%clk 0:02:49]}  cxd5 {[%clk 0:02:17]} 13. cxd5 {[%clk 0:02:50]}  exd5 {[%clk 0:02:15]} 14. Nxd5 {[%clk 0:02:45]}  O-O {[%clk 0:02:14]} 15. Nxe7+ {[%clk 0:02:25]}  Nxe7 {[%clk 0:02:12]} 16. Ba3 {[%clk 0:02:23]}  Re8 {[%clk 0:02:11]} 17. Qb3 {[%clk 0:02:17]}  Qb6 {[%clk 0:02:00]} 18. Bb5 {[%clk 0:02:12]}  Nc6 {[%clk 0:01:59]} 19. Bd6 {[%clk 0:02:05]}  Be4 {[%clk 0:01:51]} 20. Bxc6 {[%clk 0:01:57]}  Bxc6 {[%clk 0:01:49]} 21. Qxb6 {[%clk 0:01:54]}  axb6 {[%clk 0:01:48]} 22. Rfe1 {[%clk 0:01:48]}  Ra5 {[%clk 0:01:47]} 23. a3 {[%clk 0:01:40]}  Bxf3 {[%clk 0:01:42]} 24. gxf3 {[%clk 0:01:40]}  Nxe5 {[%clk 0:01:43]} 25. Bxe5 {[%clk 0:01:36]}  Raxe5 {[%clk 0:01:41]} 26. Rxe5 {[%clk 0:01:37]}  Rxe5 {[%clk 0:01:42]} 27. Rb1 {[%clk 0:01:37]}  b5 {[%clk 0:01:42]} 28. Rc1 {[%clk 0:01:18]}  Re6 {[%clk 0:01:28]} 29. Rc8+ {[%clk 0:01:15]}  Kh7 {[%clk 0:01:27]} 30. Rc7 {[%clk 0:01:15]}  Rb6 {[%clk 0:01:03]} 31. Rxf7 {[%clk 0:01:14]}  b4 {[%clk 0:01:04]} 32. axb4 {[%clk 0:01:14]}  Rxb4 {[%clk 0:01:05]} 33. Kg2 {[%clk 0:01:14]}  h5 {[%clk 0:01:01]} 34. Rc7 {[%clk 0:01:08]}  h4 {[%clk 0:01:00]} 35. Re7 {[%clk 0:00:53]}  Kg6 {[%clk 0:00:58]} 36. Re4 {[%clk 0:00:51]}  Rxe4 {[%clk 0:00:14]} 37. fxe4 {[%clk 0:00:52]}  Kg5 {[%clk 0:00:12]} 38. Kf3 {[%clk 0:00:48]}  Kf6 {[%clk 0:00:12]} 39. Ke3 {[%clk 0:00:41]}  g5 {[%clk 0:00:12]} 40. f3 {[%clk 0:00:41]}  Ke5 {[%clk 0:00:12]} 41. Kd3 {[%clk 0:00:22]}  Kf4 {[%clk 0:00:12]} 42. Kd4 {[%clk 0:00:22]}  Kxf3 {[%clk 0:00:12]} 43. e5 {[%clk 0:00:23]}  g4 {[%clk 0:00:13]} 44. hxg4 {[%clk 0:00:24]}  h3 {[%clk 0:00:12]} 45. e6 {[%clk 0:00:24]}  h2 {[%clk 0:00:13]} 46. e7 {[%clk 0:00:25]}  h1=Q {[%clk 0:00:13]} 47. e8=Q {[%clk 0:00:26]}  Qd1+ {[%clk 0:00:12]} 48. Kc3 {[%clk 0:00:25]}  Qc1+ {[%clk 0:00:12]} 49. Kb3 {[%clk 0:00:25]}  Qb1+ {[%clk 0:00:12]} 50. Kc3 {[%clk 0:00:24]}  Qa1+ {[%clk 0:00:12]} 51. Kc2 {[%clk 0:00:20]}  Qa2+ {[%clk 0:00:11]} 52. Kc1 {[%clk 0:00:20]}  Qa3+ {[%clk 0:00:11]} 53. Kc2 {[%clk 0:00:20]}  Qc5+ {[%clk 0:00:11]} 54. Kd3 {[%clk 0:00:17]}  Qd6+ {[%clk 0:00:11]} 55. Kc2 {[%clk 0:00:17]}  Qc7+ {[%clk 0:00:11]} 56. Kb3 {[%clk 0:00:15]}  Qb6+ {[%clk 0:00:11]} 57. Kc4 {[%clk 0:00:11]}  Kxg4 {[%clk 0:00:11]} 58. Qd7+ {[%clk 0:00:10]}  Kf4 {[%clk 0:00:09]} 59. Qd4+ {[%clk 0:00:09]}  Qxd4+ {[%clk 0:00:10]} 60. Kxd4 {[%clk 0:00:10]}  b5 {[%clk 0:00:10]} 61. Kc5 {[%clk 0:00:10]}  b4 {[%clk 0:00:11]} 62. Kxb4 {[%clk 0:00:10]} 1/2-1/2


[Site "https://www.chess.com"]

[Event "Titled Tuesday Blitz January 18 2022"]
[White "Rozen, Eytan"]
[Black "Babiy, Olga"]
[WhiteFideId "2816750"]
[BlackFideId "14117258"]
[WhiteElo "2115"]
[BlackElo "2252"]
[Result "1-0"]
[Round "03"]
[TimeControl "180+1"]
[Date "2022.01.18"]
[WhiteClock "0:00:04"]
[BlackClock "0:00:01"]

1. d3 {[%clk 0:02:58]}  b5 {[%clk 0:02:57]} 2. c4 {[%clk 0:02:53]}  a6 {[%clk 0:02:53]} 3. e4 {[%clk 0:02:47]}  g6 {[%clk 0:02:39]} 4. Nf3 {[%clk 0:02:44]}  Bg7 {[%clk 0:02:39]} 5. Nc3 {[%clk 0:02:41]}  b4 {[%clk 0:02:39]} 6. Nd5 {[%clk 0:02:40]}  c5 {[%clk 0:02:34]} 7. h4 {[%clk 0:02:35]}  e6 {[%clk 0:02:32]} 8. Nf4 {[%clk 0:02:31]}  h5 {[%clk 0:02:29]} 9. Ng5 {[%clk 0:02:27]}  Nc6 {[%clk 0:02:17]} 10. g3 {[%clk 0:02:11]}  Nh6 {[%clk 0:02:17]} 11. Bh3 {[%clk 0:02:09]}  O-O {[%clk 0:02:00]} 12. O-O {[%clk 0:02:02]}  Ne5 {[%clk 0:01:58]} 13. Nf3 {[%clk 0:01:52]}  Neg4 {[%clk 0:01:56]} 14. Rb1 {[%clk 0:01:50]}  d6 {[%clk 0:01:54]} 15. b3 {[%clk 0:01:48]}  a5 {[%clk 0:01:43]} 16. d4 {[%clk 0:01:41]}  cxd4 {[%clk 0:01:38]} 17. Nxd4 {[%clk 0:01:42]}  Qb6 {[%clk 0:01:37]} 18. Nb5 {[%clk 0:01:37]}  Rd8 {[%clk 0:01:33]} 19. Kg2 {[%clk 0:01:31]}  Ba6 {[%clk 0:01:33]} 20. Qe2 {[%clk 0:01:20]}  Bxb5 {[%clk 0:01:26]} 21. cxb5 {[%clk 0:01:21]}  Rab8 {[%clk 0:01:27]} 22. f3 {[%clk 0:01:17]}  Ne5 {[%clk 0:01:22]} 23. Be3 {[%clk 0:01:14]}  Qxb5 {[%clk 0:01:22]} 24. Qxb5 {[%clk 0:01:13]}  Rxb5 {[%clk 0:01:23]} 25. Rbc1 {[%clk 0:01:14]}  Rbb8 {[%clk 0:00:56]} 26. Rc7 {[%clk 0:01:13]}  Rdc8 {[%clk 0:00:55]} 27. Nxe6 {[%clk 0:01:08]}  Nhg4 {[%clk 0:00:44]} 28. fxg4 {[%clk 0:00:55]}  fxe6 {[%clk 0:00:44]} 29. Rxc8+ {[%clk 0:00:53]}  Rxc8 {[%clk 0:00:44]} 30. gxh5 {[%clk 0:00:54]}  Re8 {[%clk 0:00:31]} 31. hxg6 {[%clk 0:00:34]}  Nxg6 {[%clk 0:00:32]} 32. Bb6 {[%clk 0:00:34]}  Bc3 {[%clk 0:00:24]} 33. Rd1 {[%clk 0:00:32]}  d5 {[%clk 0:00:15]} 34. exd5 {[%clk 0:00:30]}  exd5 {[%clk 0:00:15]} 35. Rxd5 {[%clk 0:00:27]}  Re2+ {[%clk 0:00:15]} 36. Kf3 {[%clk 0:00:27]}  Rxa2 {[%clk 0:00:15]} 37. Be6+ {[%clk 0:00:15]}  Kg7 {[%clk 0:00:15]} 38. Rxa5 {[%clk 0:00:10]}  Rb2 {[%clk 0:00:10]} 39. Ra7+ {[%clk 0:00:10]}  Kf6 {[%clk 0:00:10]} 40. Bd5 {[%clk 0:00:08]}  Ne5+ {[%clk 0:00:11]} 41. Kf4 {[%clk 0:00:07]}  Nd3+ {[%clk 0:00:10]} 42. Kg4 {[%clk 0:00:06]}  Ne5+ {[%clk 0:00:10]} 43. Kh5 {[%clk 0:00:06]}  Rd2 {[%clk 0:00:02]} 44. Bd8+ {[%clk 0:00:04]}  Kf5 {[%clk 0:00:01]} 45. Ra5 {[%clk 0:00:04]} 1-0


[Site "https://www.chess.com"]

[Event "Titled Tuesday Blitz January 18 2022"]
[White "Samadov, Read"]
[Black "Cori T., Deysi"]
[WhiteFideId "13417444"]
[BlackFideId "3801934"]
[WhiteElo "2084"]
[BlackElo "2350"]
[Result "1-0"]
[Round "03"]
[TimeControl "180+1"]
[Date "2022.01.18"]
[WhiteClock "0:01:43"]
[BlackClock "0:00:14"]

1. d4 {[%clk 0:03:00]}  f5 {[%clk 0:03:00]} 2. c4 {[%clk 0:03:00]}  Nf6 {[%clk 0:02:58]} 3. Nc3 {[%clk 0:03:01]}  g6 {[%clk 0:02:58]} 4. h4 {[%clk 0:03:00]}  d6 {[%clk 0:02:57]} 5. h5 {[%clk 0:03:01]}  Nxh5 {[%clk 0:02:57]} 6. Rxh5 {[%clk 0:03:01]}  gxh5 {[%clk 0:02:58]} 7. e4 {[%clk 0:03:01]}  fxe4 {[%clk 0:02:44]} 8. Qxh5+ {[%clk 0:03:02]}  Kd7 {[%clk 0:02:44]} 9. Qh3+ {[%clk 0:03:02]}  e6 {[%clk 0:02:42]} 10. Nxe4 {[%clk 0:02:58]}  c6 {[%clk 0:02:36]} 11. Nf3 {[%clk 0:02:48]}  Kc7 {[%clk 0:02:34]} 12. Bg5 {[%clk 0:02:38]}  Qd7 {[%clk 0:01:57]} 13. Qh2 {[%clk 0:02:11]}  b6 {[%clk 0:01:46]} 14. c5 {[%clk 0:02:02]}  bxc5 {[%clk 0:01:43]} 15. dxc5 {[%clk 0:02:00]}  e5 {[%clk 0:00:54]} 16. Nxe5 {[%clk 0:02:00]}  Qe6 {[%clk 0:00:50]} 17. cxd6+ {[%clk 0:01:58]}  Kb6 {[%clk 0:00:41]} 18. Be3+ {[%clk 0:01:50]}  Ka5 {[%clk 0:00:20]} 19. Nc4+ {[%clk 0:01:49]}  Kb4 {[%clk 0:00:15]} 20. a3+ {[%clk 0:01:42]}  Kb3 {[%clk 0:00:14]} 21. Nc5+ {[%clk 0:01:42]}  Kc2 {[%clk 0:00:14]} 22. Bd3# {[%clk 0:01:43]} 1-0


[Site "https://www.chess.com"]

[Event "Titled Tuesday Blitz January 18 2022"]
[White "Samunenkov, Ihor"]
[Black "Dolzhykova, Kateryna"]
[WhiteFideId "14187086"]
[BlackFideId "14113414"]
[WhiteElo "2406"]
[BlackElo "2165"]
[Result "1-0"]
[Round "03"]
[TimeControl "180+1"]
[Date "2022.01.18"]
[WhiteClock "0:00:41"]
[BlackClock "0:00:19"]

1. d4 {[%clk 0:03:00]}  Nf6 {[%clk 0:02:59]} 2. c4 {[%clk 0:03:01]}  e6 {[%clk 0:02:59]} 3. Nc3 {[%clk 0:03:02]}  d5 {[%clk 0:02:58]} 4. cxd5 {[%clk 0:03:02]}  exd5 {[%clk 0:02:58]} 5. Bg5 {[%clk 0:03:02]}  c6 {[%clk 0:02:58]} 6. e3 {[%clk 0:03:02]}  Be7 {[%clk 0:02:58]} 7. Qc2 {[%clk 0:03:01]}  O-O {[%clk 0:02:58]} 8. Bd3 {[%clk 0:03:02]}  h6 {[%clk 0:02:58]} 9. Bh4 {[%clk 0:02:53]}  Re8 {[%clk 0:02:57]} 10. Nge2 {[%clk 0:02:44]}  Ne4 {[%clk 0:02:56]} 11. Bxe7 {[%clk 0:02:43]}  Qxe7 {[%clk 0:02:56]} 12. Bxe4 {[%clk 0:02:43]}  dxe4 {[%clk 0:02:57]} 13. O-O {[%clk 0:02:43]}  Bf5 {[%clk 0:02:56]} 14. Rad1 {[%clk 0:02:34]}  Nd7 {[%clk 0:02:55]} 15. d5 {[%clk 0:02:34]}  Rac8 {[%clk 0:02:38]} 16. dxc6 {[%clk 0:02:12]}  bxc6 {[%clk 0:02:35]} 17. Ng3 {[%clk 0:01:55]}  Bg4 {[%clk 0:02:23]} 18. Rd4 {[%clk 0:01:50]}  Nf6 {[%clk 0:02:06]} 19. Ncxe4 {[%clk 0:01:40]}  Nxe4 {[%clk 0:02:05]} 20. Rxe4 {[%clk 0:01:35]}  Bf5 {[%clk 0:01:39]} 21. Rxe7 {[%clk 0:01:23]}  Bxc2 {[%clk 0:01:40]} 22. Rxe8+ {[%clk 0:01:14]}  Rxe8 {[%clk 0:01:41]} 23. Rc1 {[%clk 0:01:14]}  Ba4 {[%clk 0:01:16]} 24. b3 {[%clk 0:01:14]}  Bb5 {[%clk 0:01:16]} 25. a4 {[%clk 0:01:14]}  Bd3 {[%clk 0:01:16]} 26. Rxc6 {[%clk 0:01:14]}  Rb8 {[%clk 0:01:16]} 27. Rc3 {[%clk 0:01:14]}  Bb1 {[%clk 0:01:08]} 28. Ne2 {[%clk 0:01:13]}  Ba2 {[%clk 0:01:04]} 29. Nd4 {[%clk 0:01:12]}  Kf8 {[%clk 0:01:01]} 30. Kf1 {[%clk 0:01:11]}  Bb1 {[%clk 0:01:00]} 31. Ke2 {[%clk 0:01:10]}  Be4 {[%clk 0:01:00]} 32. f3 {[%clk 0:01:09]}  Bb7 {[%clk 0:00:57]} 33. e4 {[%clk 0:01:03]}  Rd8 {[%clk 0:00:55]} 34. Ke3 {[%clk 0:01:03]}  g6 {[%clk 0:00:54]} 35. Rc7 {[%clk 0:01:03]}  Rb8 {[%clk 0:00:53]} 36. b4 {[%clk 0:01:03]}  a6 {[%clk 0:00:52]} 37. b5 {[%clk 0:00:57]}  axb5 {[%clk 0:00:52]} 38. axb5 {[%clk 0:00:58]}  h5 {[%clk 0:00:31]} 39. h4 {[%clk 0:00:50]}  Kg7 {[%clk 0:00:31]} 40. Ne6+ {[%clk 0:00:45]}  Kf6 {[%clk 0:00:31]} 41. Nc5 {[%clk 0:00:45]}  Bc8 {[%clk 0:00:31]} 42. b6 {[%clk 0:00:43]}  Be6 {[%clk 0:00:20]} 43. b7 {[%clk 0:00:41]}  Bc4 {[%clk 0:00:19]} 1-0


[Site "https://www.chess.com"]

[Event "Titled Tuesday Blitz January 18 2022"]
[White "San, Thit Lwin"]
[Black "Csonka, Balazs"]
[WhiteFideId "13001272"]
[BlackFideId "742910"]
[WhiteElo "2232"]
[BlackElo "2404"]
[Result "0-1"]
[Round "03"]
[TimeControl "180+1"]
[Date "2022.01.18"]
[WhiteClock "0:00:05"]
[BlackClock "0:00:06"]

1. Nf3 {[%clk 0:03:00]}  Nf6 {[%clk 0:02:55]} 2. c4 {[%clk 0:03:01]}  e6 {[%clk 0:02:55]} 3. Nc3 {[%clk 0:03:01]}  d5 {[%clk 0:02:55]} 4. d4 {[%clk 0:03:01]}  Ne4 {[%clk 0:02:55]} 5. Qc2 {[%clk 0:02:59]}  Nxc3 {[%clk 0:02:54]} 6. bxc3 {[%clk 0:02:59]}  dxc4 {[%clk 0:02:53]} 7. Ne5 {[%clk 0:02:54]}  b5 {[%clk 0:02:27]} 8. a4 {[%clk 0:02:52]}  c6 {[%clk 0:02:25]} 9. g3 {[%clk 0:02:34]}  f6 {[%clk 0:01:57]} 10. Nf3 {[%clk 0:02:15]}  Bb7 {[%clk 0:01:41]} 11. Bg2 {[%clk 0:02:15]}  Be7 {[%clk 0:01:41]} 12. O-O {[%clk 0:02:12]}  O-O {[%clk 0:01:36]} 13. axb5 {[%clk 0:02:05]}  cxb5 {[%clk 0:01:31]} 14. Ng5 {[%clk 0:02:04]}  fxg5 {[%clk 0:01:31]} 15. Bxb7 {[%clk 0:02:04]}  Nd7 {[%clk 0:01:32]} 16. Qe4 {[%clk 0:01:55]}  Rb8 {[%clk 0:01:22]} 17. Qxe6+ {[%clk 0:01:44]}  Kh8 {[%clk 0:01:22]} 18. Rxa7 {[%clk 0:01:17]}  Nc5 {[%clk 0:01:00]} 19. Qd5 {[%clk 0:01:11]}  Rxb7 {[%clk 0:00:33]} 20. Qxd8 {[%clk 0:00:58]}  Rxd8 {[%clk 0:00:34]} 21. Ra2 {[%clk 0:00:48]}  Ne4 {[%clk 0:00:22]} 22. Rc2 {[%clk 0:00:41]}  g4 {[%clk 0:00:19]} 23. f3 {[%clk 0:00:37]}  gxf3 {[%clk 0:00:20]} 24. exf3 {[%clk 0:00:36]}  Nf6 {[%clk 0:00:21]} 25. Re1 {[%clk 0:00:34]}  Kg8 {[%clk 0:00:21]} 26. Bf4 {[%clk 0:00:33]}  Nd5 {[%clk 0:00:20]} 27. Be5 {[%clk 0:00:31]}  b4 {[%clk 0:00:21]} 28. cxb4 {[%clk 0:00:30]}  Bxb4 {[%clk 0:00:22]} 29. Rb1 {[%clk 0:00:26]}  c3 {[%clk 0:00:21]} 30. Kf2 {[%clk 0:00:20]}  Ra7 {[%clk 0:00:17]} 31. Ke2 {[%clk 0:00:19]}  Rda8 {[%clk 0:00:13]} 32. Kd3 {[%clk 0:00:17]}  Kf7 {[%clk 0:00:13]} 33. Ke4 {[%clk 0:00:15]}  Ra5 {[%clk 0:00:07]} 34. f4 {[%clk 0:00:15]}  R8a7 {[%clk 0:00:06]} 35. g4 {[%clk 0:00:11]}  Be7 {[%clk 0:00:06]} 36. f5 {[%clk 0:00:08]}  Nf6+ {[%clk 0:00:04]} 37. Bxf6 {[%clk 0:00:07]}  Bxf6 {[%clk 0:00:05]} 38. Rxc3 {[%clk 0:00:07]}  Rd7 {[%clk 0:00:06]} 39. Rd3 {[%clk 0:00:06]}  Ra4 {[%clk 0:00:06]} 40. Rbd1 {[%clk 0:00:05]}  h6 {[%clk 0:00:06]} 41. h3 {[%clk 0:00:05]}  Ke7 {[%clk 0:00:06]} 0-1


[Site "https://www.chess.com"]